bitfinex/quotes_BTCUSD_20250802
["timestamp","ask_amount","ask_price","bid_price","bid_amount"]
[1754168999507,0.1501738,112950.0,112940.0,0.04221]
[1754169001172,0.14188,112950.0,112940.0,0.04221]
[1754169002254,0.15209776,112950.0,112940.0,0.04221]
[1754169002512,0.15209844,112950.0,112940.0,0.04221]
[1754169003550,0.15209859,112950.0,112940.0,0.04221]
[1754169006836,0.15209887,112950.0,112940.0,0.04221]
[1754169007730,0.1438,112950.0,112940.0,0.04221]
[1754169008490,0.15765991,112950.0,112940.0,0.04221]
[1754169009146,0.16595842,112950.0,112940.0,0.04221]
[1754169009381,0.15765991,112950.0,112940.0,0.04221]
[1754169009592,0.16595875,112950.0,112940.0,0.04221]
[1754169010243,0.16595875,112950.0,112940.0,0.03727]
[1754169010507,0.16595875,112950.0,112940.0,0.0046]
[1754169010700,0.16595875,112950.0,112940.0,0.03727]
[1754169012951,0.16595875,112950.0,112940.0,0.04023]
[1754169013868,0.16595875,112950.0,112940.0,0.03727]
[1754169015253,0.23448659,112950.0,112940.0,0.002]
[1754169015490,0.32311943,112950.0,112940.0,0.002]
[1754169015954,0.27240355,112950.0,112940.0,0.002]
[1754169016186,0.27240355,112950.0,112940.0,0.001]
[1754169016412,0.25854364,112950.0,112930.0,0.03267]
[1754169017589,0.25855118,112950.0,112930.0,0.03267]
[1754169018940,0.27241231,112950.0,112930.0,0.03267]
[1754169019153,0.33365354,112950.0,112930.0,0.03267]
[1754169019369,0.34,112940.0,112930.0,0.03267]
[1754169019600,0.36683834,112940.0,112930.0,0.03267]
[1754169020973,0.53527267,112940.0,112930.0,0.04021]
[1754169021202,0.51674071,112940.0,112930.0,0.04021]
[1754169021435,0.53335146,112940.0,112930.0,0.04021]
[1754169022123,0.53335146,112940.0,112930.0,0.04121]
[1754169022798,0.39151146,112940.0,112930.0,0.04121]
[1754169023013,0.53335146,112940.0,112930.0,0.04121]
[1754169023519,0.53335146,112940.0,112930.0,0.04221]
[1754169024380,0.50671713,112940.0,112930.0,0.04221]
[1754169025904,0.50671713,112940.0,112930.0,0.03973]
[1754169029038,0.49010638,112940.0,112930.0,0.03973]
[1754169029475,0.15010638,112940.0,112930.0,0.03973]
[1754169030804,0.16842313,112940.0,112930.0,0.0046]
[1754169031090,0.19199628,112940.0,112930.0,0.0046]
[1754169031308,0.19251628,112940.0,112930.0,0.002]
[1754169031527,0.2103264,112940.0,112930.0,0.002]
[1754169031959,0.18675325,112940.0,112930.0,0.002]
[1754169033226,0.18623325,112940.0,112930.0,0.002]
[1754169033677,0.63895924,112940.0,112930.0,0.002]
[1754169033899,0.61538609,112940.0,112930.0,0.002]
[1754169034555,0.64180063,112940.0,112930.0,0.002]
[1754169035482,0.64180063,112940.0,112930.0,0.001]
[1754169035697,0.64180063,112940.0,112910.0,0.03924]
[1754169036357,0.08863284,112930.0,112910.0,0.03924]
[1754169036587,0.14368,112920.0,112910.0,0.03924]
[1754169036796,0.14368,112920.0,112910.0,0.03341]
[1754169037239,0.14368,112920.0,112910.0,0.04134]
[1754169037447,0.15198518,112920.0,112910.0,0.04134]
[1754169037669,0.15212799,112920.0,112910.0,0.04134]
[1754169038749,0.15212799,112920.0,112910.0,0.04234]
[1754169039297,0.15212799,112920.0,112910.0,0.04334]
[1754169039501,0.15212799,112920.0,112910.0,0.04234]
[1754169039944,0.15212799,112920.0,112910.0,0.04334]
[1754169042334,0.17045581,112920.0,112910.0,0.04334]
[1754169042621,0.17875687,112920.0,112910.0,0.04334]
[1754169043657,0.17683687,112920.0,112910.0,0.04334]
[1754169043866,0.17683695,112920.0,112910.0,0.04334]
[1754169047819,0.03507695,112920.0,112910.0,0.04334]
[1754169048030,0.02677581,112920.0,112910.0,0.04334]
[1754169052642,0.02869581,112920.0,112910.0,0.04334]
[1754169053788,0.02677581,112920.0,112910.0,0.04334]
[1754169054406,0.02667581,112920.0,112910.0,0.04334]
[1754169055935,0.02859581,112920.0,112910.0,0.03541]
[1754169056157,0.03689806,112920.0,112910.0,0.03541]
[1754169056615,0.1255309,112920.0,112910.0,0.002]
[1754169056844,0.1267309,112920.0,112910.0,0.002]
[1754169057917,0.49496229,112920.0,112910.0,0.002]
[1754169058153,0.4667309,112920.0,112910.0,0.002]
[1754169058375,0.4667309,112920.0,112910.0,0.001]
[1754169059104,0.4667309,112920.0,112900.0,0.03132]
[1754169059319,0.48334029,112920.0,112900.0,0.03132]
[1754169060595,0.48334029,112920.0,112900.0,0.03392]
[1754169060878,0.48334029,112920.0,112900.0,0.03713]
[1754169061662,0.14164,112910.0,112900.0,0.03713]
[1754169061899,0.14356,112910.0,112900.0,0.03713]
[1754169062390,0.15742412,112910.0,112900.0,0.03713]
[1754169062829,0.18406012,112910.0,112900.0,0.03917]
[1754169063480,0.18406012,112910.0,112900.0,0.04017]
[1754169065038,0.18406012,112910.0,112900.0,0.04117]
[1754169065259,0.19237326,112910.0,112900.0,0.03592]
[1754169065506,0.19237326,112910.0,112900.0,0.03332]
[1754169065957,0.69985766,112910.0,112900.0,0.002]
[1754169066172,0.68719354,112910.0,112900.0,0.002]
[1754169066596,0.62496865,112910.0,112900.0,0.002]
[1754169067591,0.56522356,112910.0,112900.0,0.001]
[1754169067810,0.59186256,112910.0,112890.0,0.03132]
[1754169068384,0.61543571,112910.0,112880.0,0.03453]
[1754169068811,4.497944,112900.0,112880.0,0.03453]
[1754169069044,0.57019284,112890.0,112870.0,0.03453]
[1754169069279,0.61039266,112890.0,112860.0,0.00581]
[1754169069480,0.61039266,112890.0,112860.0,0.03713]
[1754169070508,0.62426205,112890.0,112860.0,0.03713]
[1754169071926,0.62426205,112890.0,112860.0,0.03453]
[1754169072135,0.62426205,112890.0,112860.0,0.03713]
[1754169072338,0.6006889,112890.0,112860.0,0.03713]
[1754169074814,0.6006889,112890.0,112870.0,0.00321]
[1754169075237,0.6006889,112890.0,112870.0,0.03453]
[1754169075697,0.366645,112880.0,112870.0,0.03132]
[1754169075920,0.47190451,112880.0,112870.0,0.03132]
[1754169076920,0.47195222,112880.0,112870.0,0.03132]
[1754169077144,0.49816626,112880.0,112870.0,0.03232]
[1754169077576,0.49816626,112880.0,112870.0,0.03132]
[1754169077776,0.49816626,112880.0,112870.0,0.03532]
[1754169079129,0.49816626,112880.0,112870.0,0.004]
[1754169079736,0.53701868,112880.0,112870.0,0.004]
[1754169079914,0.56059183,112880.0,112870.0,0.004]
[1754169080333,5.05853583,112880.0,112870.0,0.004]
[1754169080819,5.07598485,112880.0,112870.0,0.002]
[1754169081560,5.07598485,112880.0,112850.0,0.03453]
[1754169081761,0.23015284,112870.0,112850.0,0.03453]
[1754169081982,0.24677951,112870.0,112850.0,0.03453]
[1754169082395,0.26065073,112870.0,112850.0,0.03453]
[1754169083199,0.26892353,112870.0,112850.0,0.03453]
[1754169083399,0.26892353,112870.0,112850.0,0.03132]
[1754169083743,0.26892353,112870.0,112850.0,0.03232]
[1754169083956,0.34,112860.0,112850.0,0.001]
[1754169084143,0.48628168,112860.0,112850.0,0.001]
[1754169084372,0.49455465,112860.0,112850.0,0.001]
[1754169084757,0.4709815,112860.0,112840.0,0.03453]
[1754169084955,0.57015284,112850.0,112840.0,0.03453]
[1754169085159,0.58677951,112850.0,112840.0,0.03453]
[1754169085366,0.58677951,112850.0,112840.0,0.03654]
[1754169085760,0.44525951,112850.0,112840.0,0.03654]
[1754169086069,0.58677951,112850.0,112840.0,0.03854]
[1754169086451,0.58677951,112850.0,112840.0,0.03654]
[1754169086656,0.58677951,112850.0,112840.0,0.03854]
[1754169086960,0.60065257,112850.0,112840.0,0.03854]
[1754169087817,0.60065257,112850.0,112840.0,0.03653]
[1754169088037,0.60065257,112850.0,112840.0,0.03753]
[1754169088321,0.60065257,112850.0,112840.0,0.03453]
[1754169088537,0.60065257,112850.0,112840.0,0.03654]
[1754169088766,0.60065257,112850.0,112840.0,0.03854]
[1754169089007,0.03049973,112850.0,112840.0,0.04314]
[1754169089257,0.15539306,112850.0,112840.0,0.04314]
[1754169089508,0.18204306,112850.0,112840.0,0.04314]
[1754169089992,0.18204306,112850.0,112840.0,0.04054]
[1754169090643,0.18204306,112850.0,112840.0,0.04314]
[1754169090871,0.19858805,112850.0,112840.0,0.04314]
[1754169094703,0.19858805,112850.0,112840.0,0.04054]
[1754169094975,0.53883805,112850.0,112840.0,0.03507]
[1754169095431,0.53497307,112850.0,112840.0,0.03507]
[1754169095659,0.53497307,112850.0,112840.0,0.03708]
[1754169096426,0.53497307,112850.0,112840.0,0.03448]
[1754169096661,0.53497307,112850.0,112840.0,0.03247]
[1754169097826,0.53497307,112850.0,112840.0,0.03507]
[1754169098041,0.53497307,112850.0,112840.0,0.03247]
[1754169099196,0.53497307,112850.0,112840.0,0.04012]
[1754169099638,0.54884595,112850.0,112840.0,0.04012]
[1754169100177,0.63747879,112850.0,112840.0,0.03247]
[1754169101063,0.63747879,112850.0,112840.0,0.03448]
[1754169101309,0.63747879,112850.0,112840.0,0.03752]
[1754169103647,0.63749424,112850.0,112840.0,0.03752]
[1754169103862,0.63749424,112850.0,112840.0,0.03448]
[1754169104085,0.63749424,112850.0,112840.0,0.03247]
[1754169104300,0.62362136,112850.0,112840.0,0.03247]
[1754169104976,0.6427551,112850.0,112840.0,0.03247]
[1754169107150,0.6427551,112850.0,112840.0,0.004]
[1754169107859,0.6427551,112850.0,112830.0,0.00304]
[1754169108074,0.6427551,112850.0,112840.0,0.03355]
[1754169108284,0.6161051,112850.0,112840.0,0.03455]
[1754169108495,0.65663052,112850.0,112840.0,0.03455]
[1754169109222,0.65912052,112850.0,112840.0,0.001]
[1754169109438,0.66191052,112850.0,112840.0,0.001]
[1754169110091,0.66191052,112850.0,112830.0,0.03355]
[1754169110517,0.66191052,112850.0,112830.0,0.03455]
[1754169111215,0.08863284,112840.0,112830.0,0.03455]
[1754169111456,0.1370751,112840.0,112830.0,0.001]
[1754169112126,0.1345851,112840.0,112830.0,0.001]
[1754169112355,0.13467822,112840.0,112830.0,0.03455]
[1754169112566,0.13472591,112840.0,112830.0,0.03455]
[1754169113194,0.13472591,112840.0,112830.0,0.03355]
[1754169113477,0.13472591,112840.0,112830.0,0.03455]
[1754169113910,0.13474271,112840.0,112830.0,0.03455]
[1754169114082,0.13723271,112840.0,112830.0,0.001]
[1754169115177,0.13723232,112840.0,112830.0,0.001]
[1754169115663,0.13892232,112840.0,112830.0,0.001]
[1754169115863,0.47892232,112840.0,112830.0,0.001]
[1754169116118,0.47723232,112840.0,112830.0,0.001]
[1754169116984,0.49468134,112840.0,112830.0,0.001]
[1754169117313,0.49219134,112840.0,112830.0,0.001]
[1754169117537,0.61614232,112840.0,112830.0,0.03633]
[1754169117748,0.61417232,112840.0,112830.0,0.03633]
[1754169118180,0.61615232,112840.0,112830.0,0.03633]
[1754169119230,0.63002638,112840.0,112830.0,0.03633]
[1754169119433,0.71886394,112840.0,112830.0,0.03633]
[1754169119658,0.63002638,112840.0,112830.0,0.03633]
[1754169119859,0.65668238,112840.0,112830.0,0.03633]
[1754169124512,0.63754864,112840.0,112830.0,0.03633]
[1754169125815,0.63754297,112840.0,112830.0,0.03633]
[1754169128806,0.72638053,112840.0,112830.0,0.03633]
[1754169128985,0.63754297,112840.0,112830.0,0.03633]
[1754169129780,0.63753373,112840.0,112830.0,0.03633]
[1754169130263,0.49613373,112840.0,112830.0,0.03633]
[1754169130515,0.63547373,112840.0,112830.0,0.03633]
[1754169131997,0.63745373,112840.0,112830.0,0.03633]
[1754169134850,0.6374585,112840.0,112830.0,0.03108]
[1754169136522,0.65662614,112840.0,112830.0,0.03108]
[1754169139894,0.29741081,112840.0,112830.0,0.03108]
[1754169143670,0.29741081,112840.0,112830.0,0.03319]
[1754169143834,0.29741081,112840.0,112830.0,0.03633]
[1754169144037,0.15609081,112840.0,112830.0,0.03633]
[1754169144295,0.29531081,112840.0,112830.0,0.03633]
[1754169144849,0.29729081,112840.0,112830.0,0.03633]
[1754169145066,0.63729081,112840.0,112830.0,0.03633]
[1754169145533,0.6564715,112840.0,112830.0,0.03319]
[1754169146191,0.63729081,112840.0,112830.0,0.03319]
[1754169146368,0.44397973,112840.0,112830.0,0.03319]
[1754169146570,0.48450963,112840.0,112830.0,0.03319]
[1754169146773,0.47063473,112840.0,112830.0,0.03319]
[1754169147203,0.47063473,112840.0,112830.0,0.03108]
[1754169147840,0.47063473,112840.0,112830.0,0.03311]
[1754169148199,0.368635,112840.0,112830.0,0.03608]
[1754169148414,0.507815,112840.0,112830.0,0.03868]
[1754169149617,0.52168925,112840.0,112830.0,0.03868]
[1754169152383,0.38052925,112840.0,112830.0,0.03868]
[1754169152622,0.49499425,112840.0,112830.0,0.03868]
[1754169156977,0.01387425,112840.0,112830.0,0.12731284]
[1754169157227,0.01387425,112840.0,112830.0,0.14008412]
[1754169158592,0.03050903,112840.0,112830.0,0.14008412]
[1754169161912,0.03050903,112840.0,112830.0,0.13836412]
[1754169162151,0.01387425,112840.0,112830.0,0.13836412]
[1754169162385,0.14104,112850.0,112830.0,0.13836412]
[1754169162624,0.16598018,112850.0,112830.0,0.10651093]
[1754169162851,0.16598018,112850.0,112840.0,0.00297]
[1754169163068,0.16598018,112850.0,112840.0,0.005]
[1754169163710,0.15035339,112850.0,112840.0,0.005]
[1754169163951,0.16697775,112850.0,112840.0,0.03992]
[1754169164193,0.16797775,112850.0,112840.0,0.05410009]
[1754169164443,0.16597775,112850.0,112840.0,0.05410009]
[1754169165293,0.17985039,112850.0,112840.0,0.05410009]
[1754169166313,0.17985039,112850.0,112840.0,0.14273293]
[1754169166474,0.03881039,112850.0,112840.0,0.14273293]
[1754169166678,0.141,112860.0,112850.0,0.0026]
[1754169166887,0.02492788,112860.0,112850.0,0.12855284]
[1754169167089,0.02492788,112860.0,112850.0,0.14282613]
[1754169167698,0.02492788,112860.0,112850.0,0.14482613]
[1754169168324,0.17153812,112880.0,112850.0,0.14282613]
[1754169168570,0.19645343,112880.0,112860.0,0.08863284]
[1754169168775,0.53645343,112880.0,112870.0,0.00203]
[1754169168986,0.53645343,112880.0,112870.0,0.03732]
[1754169169620,0.53644706,112880.0,112870.0,0.03732]
[1754169169952,0.53644706,112880.0,112870.0,0.03779681]
[1754169170204,0.53858706,112880.0,112870.0,0.02279681]
[1754169170414,0.54159706,112880.0,112870.0,0.03536804]
[1754169170804,0.55546638,112880.0,112870.0,0.03536804]
[1754169171406,0.55546638,112880.0,112870.0,0.03739804]
[1754169172411,0.54716129,112880.0,112870.0,0.03739804]
[1754169172653,0.53055744,112880.0,112870.0,0.03739804]
[1754169173584,0.38959744,112880.0,112870.0,0.03739804]
[1754169175279,0.38959744,112880.0,112870.0,0.02482681]
[1754169175487,0.38959744,112880.0,112870.0,0.02279681]
[1754169177477,0.38959744,112880.0,112870.0,0.00179681]
[1754169181187,0.04444744,112880.0,112870.0,0.09798965]
[1754169181407,0.04444744,112880.0,112870.0,0.10778862]
[1754169181826,0.04444744,112880.0,112870.0,0.11000355]
[1754169182534,0.04444744,112880.0,112870.0,0.10778862]
[1754169182745,0.04444744,112880.0,112870.0,0.10978862]
[1754169182955,0.04444744,112880.0,112870.0,0.11200355]
[1754169183180,0.04444744,112880.0,112870.0,0.11300355]
[1754169183385,0.04444744,112880.0,112870.0,0.11000355]
[1754169183646,0.03444744,112880.0,112870.0,0.11800355]
[1754169185574,0.03444744,112880.0,112870.0,0.14463955]
[1754169186037,0.03642744,112880.0,112870.0,0.25359862]
[1754169186443,0.03444744,112880.0,112870.0,0.25654862]
[1754169188008,0.03444744,112880.0,112870.0,0.11578862]
[1754169188227,0.03444744,112880.0,112870.0,0.25654862]
[1754169188924,0.03444744,112880.0,112870.0,0.25650862]
[1754169189123,0.03444744,112880.0,112870.0,0.11578862]
[1754169189369,0.03444744,112880.0,112870.0,0.25650862]
[1754169189692,0.03444744,112880.0,112870.0,0.11578862]
[1754169190443,0.03286,112900.0,112870.0,0.25650862]
[1754169190643,0.01386773,112890.0,112880.0,0.12229284]
[1754169190843,0.01584773,112890.0,112880.0,0.1511777]
[1754169191295,0.02412912,112890.0,112880.0,0.1531877]
[1754169192238,0.02413052,112890.0,112880.0,0.1561377]
[1754169193207,0.02413052,112890.0,112880.0,0.1591377]
[1754169193387,0.01807052,112890.0,112880.0,0.1611377]
[1754169194239,0.0346434,112890.0,112880.0,0.1611377]
[1754169194830,0.05799948,112890.0,112880.0,0.1611377]
[1754169195032,0.667438,112910.0,112880.0,0.1611377]
[1754169196021,0.667438,112910.0,112880.0,0.1561377]
[1754169196362,0.68656921,112910.0,112880.0,0.1224777]
[1754169196567,0.18656921,112910.0,112890.0,0.03366]
[1754169196785,0.18656921,112910.0,112890.0,0.04927377]
[1754169197158,0.18826921,112910.0,112890.0,0.04927377]
[1754169198187,0.34,112900.0,112890.0,0.04927377]
[1754169198981,0.36267444,112900.0,112890.0,0.04927377]
[1754169199223,0.36267444,112900.0,112890.0,0.05222377]
[1754169199432,0.36267444,112900.0,112890.0,0.05522377]
[1754169204450,0.36267444,112900.0,112890.0,0.05227377]
[1754169205590,0.36683444,112900.0,112890.0,0.003]
[1754169205804,0.38597885,112900.0,112890.0,0.003]
[1754169206021,0.41261885,112900.0,112890.0,0.003]
[1754169206913,0.41261885,112900.0,112890.0,0.002]
[1754169207118,0.43755026,112900.0,112890.0,0.002]
[1754169208409,0.43755026,112900.0,112880.0,0.04074]
[1754169208620,0.43755512,112900.0,112880.0,0.04074]
[1754169208822,0.43755512,112900.0,112880.0,0.05891768]
[1754169209264,0.43756485,112900.0,112880.0,0.05891768]
[1754169211881,0.43756485,112900.0,112890.0,0.0026]
[1754169212089,0.43756485,112900.0,112880.0,0.03761]
[1754169212300,0.43756485,112900.0,112880.0,0.0026]
[1754169212953,0.43756485,112900.0,112890.0,0.0026]
[1754169214931,0.42093418,112900.0,112880.0,0.01761]
[1754169215145,0.14052,112890.0,112880.0,0.01761]
[1754169215351,0.02495862,112890.0,112880.0,0.01761]
[1754169215563,0.05159862,112890.0,112880.0,0.02074]
[1754169215978,0.06546644,112890.0,112880.0,0.02074]
[1754169216393,0.06546644,112890.0,112880.0,0.02274]
[1754169217206,0.03882644,112890.0,112880.0,0.02274]
[1754169217863,0.03882644,112890.0,112880.0,0.02374]
[1754169218706,0.03882644,112890.0,112880.0,0.02575]
[1754169223764,0.03882225,112890.0,112880.0,0.02575]
[1754169225286,0.07947951,112890.0,112880.0,0.003]
[1754169225513,0.02495443,112890.0,112880.0,0.003]
[1754169225738,0.02495443,112890.0,112880.0,0.04114]
[1754169225953,0.02495443,112890.0,112880.0,0.04315]
[1754169227216,0.04651443,112890.0,112880.0,0.003]
[1754169227430,0.07008992,112890.0,112880.0,0.003]
[1754169228294,0.08395839,112890.0,112880.0,0.002]
[1754169228505,0.08395839,112890.0,112870.0,0.03861681]
[1754169228713,0.1404,112880.0,112870.0,0.03861681]
[1754169228935,0.16535443,112880.0,112870.0,0.03861681]
[1754169229398,0.14871814,112880.0,112870.0,0.03861681]
[1754169230064,0.18691106,112880.0,112870.0,0.00247681]
[1754169230903,0.18691106,112880.0,112870.0,0.00347681]
[1754169231291,0.18691106,112880.0,112870.0,0.00047681]
[1754169231501,0.18221612,112880.0,112870.0,0.00047681]
[1754169232303,0.18220724,112880.0,112870.0,0.00047681]
[1754169233182,0.20860216,112880.0,112870.0,0.00047681]
[1754169234105,0.54860216,112880.0,112870.0,0.00047681]
[1754169235075,0.60071587,112880.0,112870.0,0.00047681]
[1754169235645,0.62736187,112880.0,112870.0,0.00047681]
[1754169236695,0.63181187,112880.0,112860.0,0.01755681]
[1754169236880,0.63181187,112880.0,112860.0,0.0176568]
[1754169237292,0.64568206,112880.0,112860.0,0.0176568]
[1754169238904,0.62412206,112880.0,112860.0,0.0176568]
[1754169239119,0.03215,112870.0,112860.0,0.0176568]
[1754169239326,0.05911218,112870.0,112860.0,0.0176568]
[1754169239885,0.19939218,112870.0,112860.0,0.0176568]
[1754169240095,0.16724218,112870.0,112860.0,0.0176568]
[1754169240317,0.19939218,112870.0,112860.0,0.0176568]
[1754169240557,0.19937316,112870.0,112860.0,0.00109999]
[1754169240768,0.19937316,112870.0,112860.0,0.03554999]
[1754169241157,0.19937316,112870.0,112860.0,0.03454999]
[1754169241403,0.14859406,112870.0,112860.0,0.03973999]
[1754169241623,0.17445,112870.0,112860.0,0.00209999]
[1754169241842,0.19936009,112870.0,112860.0,9.999e-05]
[1754169242665,0.18275327,112870.0,112860.0,9.999e-05]
[1754169243101,0.19935753,112870.0,112860.0,9.999e-05]
[1754169243312,0.18275262,112870.0,112860.0,9.999e-05]
[1754169244550,0.18518262,112870.0,112860.0,9.999e-05]
[1754169245971,0.18275262,112870.0,112860.0,9.999e-05]
[1754169246386,0.19775262,112870.0,112860.0,9.999e-05]
[1754169248818,0.21435398,112870.0,112860.0,9.999e-05]
[1754169249408,0.19775262,112870.0,112860.0,9.999e-05]
[1754169250367,0.21435377,112870.0,112860.0,9.999e-05]
[1754169250575,0.23065456,112870.0,112860.0,9.999e-05]
[1754169251516,0.71581715,112870.0,112860.0,9.999e-05]
[1754169251735,0.74246815,112870.0,112860.0,9.999e-05]
[1754169252013,5.17133123,112870.0,112860.0,9.999e-05]
[1754169252220,5.1904632,112870.0,112860.0,9.999e-05]
[1754169253078,5.21443702,112870.0,112860.0,9.999e-05]
[1754169253307,5.21543702,112870.0,112860.0,9.999e-05]
[1754169253762,5.30327458,112870.0,112860.0,9.999e-05]
[1754169253989,0.80633058,112870.0,112860.0,9.999e-05]
[1754169254203,5.30427458,112870.0,112860.0,9.999e-05]
[1754169254422,5.29240379,112870.0,112860.0,9.999e-05]
[1754169255301,0.01744902,112850.0,112830.0,0.03758]
[1754169255512,0.51737,112840.0,112830.0,0.00014344]
[1754169255754,0.54227377,112840.0,112830.0,0.00014344]
[1754169256439,0.54227377,112840.0,112830.0,0.00114344]
[1754169256819,0.54227377,112840.0,112830.0,0.00014344]
[1754169257064,0.54227377,112840.0,112830.0,0.00114344]
[1754169257299,0.20223377,112840.0,112830.0,0.00314344]
[1754169257509,0.21610854,112840.0,112830.0,0.00214344]
[1754169257718,0.21610854,112840.0,112830.0,0.00514344]
[1754169257925,0.21610854,112840.0,112830.0,0.00214344]
[1754169258375,0.21610854,112840.0,112830.0,0.00314344]
[1754169258583,0.21610854,112840.0,112830.0,0.00114344]
[1754169258998,0.21610854,112840.0,112830.0,0.00214344]
[1754169259910,0.26021356,112840.0,112830.0,0.03659344]
[1754169260354,0.26020369,112840.0,112830.0,0.00214344]
[1754169260784,0.2964387,112840.0,112830.0,0.00214344]
[1754169262080,0.2964387,112840.0,112830.0,0.03659344]
[1754169262516,0.2934387,112840.0,112830.0,0.03865344]
[1754169262735,0.2612887,112840.0,112830.0,0.04178344]
[1754169263878,0.2934387,112840.0,112830.0,0.03865344]
[1754169264102,0.2964387,112840.0,112830.0,0.03865344]
[1754169264315,0.2934387,112840.0,112830.0,0.03865344]
[1754169264522,0.2612887,112840.0,112830.0,0.03865344]
[1754169264739,0.2612887,112840.0,112830.0,0.04178344]
[1754169266484,0.20558467,112840.0,112830.0,0.04178344]
[1754169266693,0.20762467,112840.0,112830.0,0.04178344]
[1754169267815,0.24230467,112840.0,112830.0,0.04178344]
[1754169268049,0.24230467,112840.0,112830.0,0.03865344]
[1754169269968,0.20762467,112840.0,112830.0,0.04187344]
[1754169270179,0.20558467,112840.0,112830.0,0.04187344]
[1754169270415,0.24230467,112840.0,112830.0,0.03693344]
[1754169271819,0.24534467,112840.0,112830.0,0.03693344]
[1754169272418,0.24534467,112840.0,112830.0,0.00214344]
[1754169274570,0.24230467,112840.0,112830.0,0.03907344]
[1754169274778,0.20761472,112840.0,112830.0,0.03907344]
[1754169275188,0.20761472,112840.0,112830.0,0.04229344]
[1754169276742,0.06745472,112840.0,112830.0,0.04229344]
[1754169276942,0.20757472,112840.0,112830.0,0.04229344]
[1754169277573,0.20759798,112840.0,112830.0,0.04229344]
[1754169280233,0.22675236,112840.0,112830.0,0.04229344]
[1754169280660,0.22675236,112840.0,112830.0,0.03907344]
[1754169280870,0.26143236,112840.0,112830.0,0.03907344]
[1754169281298,0.26447236,112840.0,112830.0,0.03693344]
[1754169286143,0.08663236,112840.0,112830.0,0.03907344]
[1754169286349,0.22474535,112840.0,112830.0,0.04229344]
[1754169286800,0.08466535,112840.0,112830.0,0.04229344]
[1754169287014,0.22474535,112840.0,112830.0,0.04229344]
[1754169287224,0.20559097,112840.0,112830.0,0.04229344]
[1754169288315,0.1917162,112840.0,112830.0,0.04229344]
[1754169289875,0.20559012,112840.0,112830.0,0.04229344]
[1754169290999,0.06551012,112840.0,112830.0,0.04229344]
[1754169291843,0.03885412,112840.0,112830.0,0.04229344]
[1754169292472,0.06550512,112840.0,112830.0,0.04229344]
[1754169293963,0.10222512,112840.0,112830.0,0.03907344]
[1754169294412,0.06754512,112840.0,112830.0,0.03907344]
[1754169294629,0.0536712,112840.0,112830.0,0.04229344]
[1754169296809,0.0516312,112840.0,112830.0,0.04229344]
[1754169297657,0.065505,112840.0,112830.0,0.04229344]
[1754169297863,0.067565,112840.0,112830.0,0.04229344]
[1754169298534,0.101255,112840.0,112830.0,0.03907344]
[1754169298738,0.104235,112840.0,112830.0,0.00214344]
[1754169299792,0.104235,112840.0,112830.0,0.03477344]
[1754169300447,0.065505,112840.0,112830.0,0.03984344]
[1754169300670,0.038854,112840.0,112830.0,0.12847628]
[1754169300911,0.0138738,112840.0,112830.0,0.1415855]
[1754169301782,0.0138738,112840.0,112830.0,0.14380122]
[1754169302243,0.0138738,112840.0,112830.0,0.14280122]
[1754169302458,0.0138738,112840.0,112830.0,0.14680122]
[1754169302869,0.0138738,112840.0,112830.0,0.1445855]
[1754169303384,0.0138738,112840.0,112830.0,0.1435855]
[1754169303837,0.0138738,112840.0,112830.0,0.1455855]
[1754169304055,0.10788556,112860.0,112830.0,0.1415855]
[1754169304239,0.13280053,112860.0,112830.0,0.1088355]
[1754169304474,0.13280053,112860.0,112840.0,0.03575]
[1754169304691,0.13280053,112860.0,112840.0,0.05050855]
[1754169304903,0.13280053,112860.0,112840.0,0.01787855]
[1754169305113,0.13280053,112860.0,112850.0,0.03263]
[1754169305324,0.13486053,112860.0,112850.0,0.03263]
[1754169305530,0.13486053,112860.0,112840.0,0.05050855]
[1754169305940,0.13486053,112860.0,112840.0,0.05150855]
[1754169306800,0.13486053,112860.0,112840.0,0.05250855]
[1754169307016,0.14873237,112860.0,112840.0,0.05250855]
[1754169307226,0.07751681,112860.0,112840.0,0.05150855]
[1754169307438,0.07751681,112860.0,112850.0,0.002]
[1754169307851,0.07751681,112860.0,112840.0,0.05150855]
[1754169308266,0.06090683,112860.0,112850.0,0.03263]
[1754169308488,0.06090683,112860.0,112850.0,0.03788086]
[1754169308696,0.06090683,112860.0,112850.0,0.03988086]
[1754169309096,0.06090683,112860.0,112850.0,0.03788086]
[1754169309698,0.06090683,112860.0,112850.0,0.001]
[1754169310654,0.06090214,112860.0,112850.0,0.001]
[1754169310884,0.08755114,112860.0,112850.0,0.003]
[1754169314535,0.10415353,112860.0,112850.0,0.003]
[1754169314715,0.08755114,112860.0,112850.0,0.03758]
[1754169315562,0.05088114,112860.0,112850.0,0.04624586]
[1754169315775,0.06748489,112860.0,112850.0,0.0407]
[1754169316202,0.10117485,112860.0,112850.0,0.0407]
[1754169316418,0.10117485,112860.0,112850.0,0.03758]
[1754169317058,0.06748485,112860.0,112850.0,0.0407]
[1754169317714,0.10117485,112860.0,112850.0,0.03758]
[1754169318322,0.10117485,112860.0,112850.0,0.04312586]
[1754169318977,0.10117485,112860.0,112850.0,0.03758]
[1754169319407,0.47988,112880.0,112850.0,0.12933284]
[1754169319610,0.026646,112870.0,112860.0,0.03575]
[1754169319831,0.51357,112880.0,112860.0,0.0377]
[1754169320049,0.01387105,112870.0,112860.0,0.0377]
[1754169320256,0.01387105,112870.0,112860.0,0.05063328]
[1754169321777,0.01387105,112870.0,112860.0,0.0377]
[1754169321988,0.04847105,112870.0,112860.0,0.00607]
[1754169322230,0.04847105,112870.0,112860.0,0.001]
[1754169324089,0.0346,112870.0,112860.0,0.001]
[1754169324768,0.0346,112870.0,112860.0,0.00412]
[1754169326065,0.061246,112870.0,112860.0,0.00412]
[1754169328208,0.07511721,112870.0,112860.0,0.00412]
[1754169328876,0.07505881,112870.0,112860.0,0.00412]
[1754169330277,0.07505881,112870.0,112860.0,0.03872]
[1754169330479,0.07505881,112870.0,112860.0,0.05350528]
[1754169330986,0.21485881,112870.0,112860.0,0.05350528]
[1754169331197,0.21485881,112870.0,112860.0,0.04077]
[1754169331406,0.23981413,112870.0,112860.0,0.04077]
[1754169331779,0.23981588,112870.0,112860.0,0.04077]
[1754169331980,0.23981588,112870.0,112860.0,0.00617]
[1754169333022,0.23981588,112870.0,112860.0,0.00412]
[1754169333683,0.23981588,112870.0,112860.0,0.001]
[1754169334855,0.23982155,112870.0,112860.0,0.001]
[1754169336304,0.2589947,112870.0,112860.0,0.001]
[1754169336510,0.23982155,112870.0,112860.0,0.001]